fUSD/lending_fUSD_20260630
["ID","MTS","AMOUNT","RATE_DAILY","PERIOD"]
[426766330,1782792638000,-11133.14047762,0.00013,2]
[426766329,1782792638000,-6118.11514433,0.00013,5]
[426766324,1782792638000,-176.22,0.00012329,2]
[426766332,1782792638000,-174.47700294,0.0001305,2]
[426766333,1782792638000,-3939.69266374,0.0001305,2]
[426766331,1782792638000,-809.42,0.00013011,2]
[426766334,1782792638000,-713.15046579,0.0001305,2]
[426766327,1782792638000,-276.64,0.00012877,2]
[426766325,1782792638000,-347.64626982,0.00012377,2]
[426766326,1782792638000,-485.03,0.0001283,2]
[426766336,1782792638000,-6877.46095561,0.00013216,2]
[426766321,1782792638000,-500.0,0.00011833,2]
[426766335,1782792638000,-610.0772168,0.0001305,2]
[426766358,1782792640000,-316.8,0.00010591,2]
[426766360,1782792640000,-556.7567977,0.00013276,2]
[426766361,1782792640000,-763.95,0.00013276,2]
[426766359,1782792640000,-2153.69904539,0.00013276,2]
[426766368,1782792643000,-652.0,0.00013276,2]
[426766366,1782792643000,-1404.59809712,0.00011078,2]
[426766367,1782792643000,-786.11226907,0.00013276,2]
[426766378,1782792647000,-500.0,0.0001329,2]
[426766380,1782792647000,-1000.0,0.000135,2]
[426766381,1782792647000,-500.76887915,0.00013698,2]
[426766379,1782792647000,-736.0,0.00013425,2]
[426766383,1782792647000,-500.0,0.00013698,2]
[426766384,1782792647000,-151.13115792,0.00013698,2]
[426766382,1782792647000,-500.0,0.00013698,2]
[426766385,1782792686000,66787.89315604,9.987e-05,2]
[426766386,1782792686000,176345.20424396,9.987e-05,2]
[426766387,1782792747000,340134.512,9.987e-05,2]
[426766395,1782793017000,-185.42053177,0.00011815,2]
[426766404,1782793018000,-150.0,0.00011815,2]
[426766406,1782793018000,-151.0,0.00011816,2]
[426766403,1782793018000,-151.0,0.00011815,2]
[426766401,1782793018000,-152.0,0.00011815,2]
[426766399,1782793018000,-152.26704643,0.00011815,2]
[426766400,1782793018000,-151.0,0.00011815,2]
[426766405,1782793018000,-151.0,0.00011815,2]
[426766397,1782793018000,-150.0,0.00011815,2]
[426766396,1782793018000,-250.0,0.00011815,2]
[426766398,1782793018000,-151.0,0.00011815,2]
[426766402,1782793018000,-151.0,0.00011815,2]
[426766407,1782793018000,-250.0,0.00011816,2]
[426766412,1782793018000,-624.9676412,0.00011914,2]
[426766410,1782793018000,-151.0,0.00011858,2]
[426766408,1782793018000,-150.0,0.00011817,2]
[426766419,1782793018000,-500.0,0.00011914,2]
[426766420,1782793018000,-1200.4970275,0.00011915,2]
[426766415,1782793018000,-500.0,0.00011914,2]
[426766414,1782793018000,-500.0,0.00011914,2]
[426766418,1782793018000,-500.0,0.00011914,2]
[426766417,1782793018000,-500.0,0.00011914,2]
[426766413,1782793018000,-500.0,0.00011914,2]
[426766411,1782793018000,-500.0,0.00011914,2]
[426766409,1782793018000,-150.0,0.00011825,2]
[426766416,1782793018000,-500.0,0.00011914,2]
[426766436,1782793019000,-151.0,0.00011915,2]
[426766435,1782793019000,-151.0,0.00011915,2]
[426766434,1782793019000,-153.0,0.00011915,2]
[426766433,1782793019000,-152.0,0.00011915,2]
[426766431,1782793019000,-152.0,0.00011915,2]
[426766432,1782793019000,-254.57233935,0.00011915,2]
[426766430,1782793019000,-151.0,0.00011915,2]
[426766427,1782793019000,-151.0,0.00011915,2]
[426766426,1782793019000,-152.0,0.00011915,2]
[426766428,1782793019000,-151.0,0.00011915,2]
[426766425,1782793019000,-152.0,0.00011915,2]
[426766424,1782793019000,-151.0,0.00011915,2]
[426766422,1782793019000,-181.70922072,0.00011915,2]
[426766421,1782793019000,-7985.0636465,0.00011915,2]
[426766439,1782793019000,-150.0,0.00011978,2]
[426766429,1782793019000,-151.0,0.00011915,2]
[426766423,1782793019000,-151.0,0.00011915,2]
[426766437,1782793019000,-160.0,0.00011943,2]
[426766440,1782793019000,-150.0,0.00012096,2]
[426766456,1782793019000,-152.0,0.00012989,2]
[426766457,1782793019000,-884.0,0.00012989,2]
[426766455,1782793019000,-204.68084532,0.00012989,2]
[426766452,1782793019000,-151.0,0.00012989,2]
[426766454,1782793019000,-897.0,0.00012989,2]
[426766453,1782793019000,-895.0,0.00012989,2]
[426766451,1782793019000,-913.0,0.00012989,2]
[426766450,1782793019000,-902.0,0.00012989,2]
[426766438,1782793019000,-216.62538722,0.00011952,2]
[426766449,1782793019000,-150.0,0.00012989,2]
[426766447,1782793019000,-898.0,0.00012989,2]
[426766446,1782793019000,-888.0,0.00012989,2]
[426766445,1782793019000,-150.0,0.00012988,2]
[426766444,1782793019000,-166.66,0.00012904,2]
[426766443,1782793019000,-166.66,0.00012638,2]
[426766441,1782793019000,-154.0,0.00012215,2]
[426766442,1782793019000,-310.83,0.00012511,2]
[426766448,1782793019000,-894.0,0.00012989,2]
[426766458,1782793020000,-905.0,0.00012989,2]
[426766461,1782793020000,-335.01,0.00013101,2]
[426766459,1782793020000,-250.0,0.00012997,2]
[426766460,1782793020000,-160.0,0.0001303,2]
[426766462,1782793020000,-166.66,0.00013171,2]
[426766463,1782793020000,-106.37631399,0.0001329,2]
[426766465,1782793209000,-306.45,0.00011027,2]
[426766466,1782793263000,-151.0,0.00011027,2]
[426766467,1782793316000,-205.75,0.00011023,2]
[426766468,1782793369000,-171.89,0.00010969,2]
[426766469,1782793422000,-151.0,0.00010895,2]
[426766470,1782793477000,-292.77932449,0.00010227,2]
[426766471,1782793529000,-269.89,0.00010355,2]
[426766472,1782793583000,-166.55145681,0.00010517,2]
[426766474,1782793594000,-41.30848512,0.00010517,2]
[426766473,1782793594000,-150.0,0.00010517,2]
[426766476,1782793608000,304.99,9.991e-05,2]
[426766477,1782793635000,-150.0,0.00010516,2]
[426766478,1782793670000,200.0,9.967e-05,2]
[426766479,1782793673000,200.0,9.967e-05,7]
[426766480,1782793689000,-174.45,0.00010276,2]
[426766481,1782793760000,-179.17248307,0.00010396,2]
[426766483,1782793760000,-112.0221207,0.00010493,2]
[426766482,1782793760000,-250.0,0.00010456,2]
[426766484,1782793811000,-1528.263563,0.0001044,2]
[426766485,1782793811000,-55.08619598,0.00010493,2]
[426766515,1782793832000,-4980.09627003,0.0001062,2]
[426766519,1782793832000,-150.0,0.00010621,2]
[426766523,1782793832000,-500.0,0.00010624,2]
[426766520,1782793832000,-9999.99,0.00010621,2]
[426766521,1782793832000,-9999.99,0.00010621,2]
[426766522,1782793832000,-999.99,0.00010621,2]
[426766526,1782793832000,-467.13,0.00010754,2]
[426766524,1782793832000,-150.0,0.00010726,2]
[426766535,1782793832000,-150.0,0.00010959,2]
[426766528,1782793832000,-150.0,0.00010831,2]
[426766527,1782793832000,-506.35829713,0.00010806,2]
[426766529,1782793832000,-151.0,0.00010895,2]
[426766530,1782793832000,-151.0,0.00010895,2]
[426766542,1782793832000,-151.0,0.00011023,2]
[426766532,1782793832000,-151.0,0.00010895,2]
[426766531,1782793832000,-150.0,0.00010895,2]
[426766534,1782793832000,-225.0,0.00010936,2]
[426766517,1782793832000,-4754.04669505,0.0001062,2]
[426766525,1782793832000,-306.45,0.00010739,2]
[426766516,1782793832000,-265.84703492,0.0001062,2]
[426766513,1782793832000,-150.0,0.0001062,2]
[426766497,1782793832000,-152.0,0.00010489,2]
[426766496,1782793832000,-185.42053177,0.00010488,2]
[426766506,1782793832000,-160.0,0.00010517,2]
[426766499,1782793832000,-151.0,0.00010499,2]
[426766508,1782793832000,-151.0,0.00010521,2]
[426766498,1782793832000,-82.89168332,0.00010493,2]
[426766507,1782793832000,-110.69151488,0.00010517,2]
[426766500,1782793832000,-150.0,0.00010516,2]
[426766502,1782793832000,-304.99,0.00010517,2]
[426766501,1782793832000,-150.0,0.00010516,2]
[426766505,1782793832000,-151.0,0.00010517,2]
[426766504,1782793832000,-151.0,0.00010517,2]
[426766509,1782793832000,-153.0,0.00010534,2]
[426766511,1782793832000,-746.9,0.00010534,2]
[426766510,1782793832000,-1348.76,0.00010534,2]
[426766514,1782793832000,-150.99,0.0001062,2]
[426766512,1782793832000,-151.0,0.00010589,2]
[426766518,1782793832000,-299.99,0.0001062,2]
[426766538,1782793832000,-152.0,0.00010969,2]
[426766503,1782793832000,-150.0,0.00010517,2]
[426766540,1782793832000,-150.0,0.00010993,2]
[426766562,1782793832000,-500.0,0.00011026,2]
[426766566,1782793832000,-500.0,0.00011026,2]
[426766556,1782793832000,-377.61533032,0.00011026,2]
[426766559,1782793832000,-500.0,0.00011026,2]
[426766560,1782793832000,-500.0,0.00011026,2]
[426766574,1782793832000,-500.0,0.00011026,2]
[426766558,1782793832000,-500.0,0.00011026,2]
[426766557,1782793832000,-500.0,0.00011026,2]
[426766565,1782793832000,-500.0,0.00011026,2]
[426766572,1782793832000,-500.0,0.00011026,2]
[426766578,1782793832000,-150.0,0.00011027,2]
[426766573,1782793832000,-500.0,0.00011026,2]
[426766577,1782793832000,-153.0,0.00011027,2]
[426766569,1782793832000,-604.69948059,0.00011026,2]
[426766570,1782793832000,-500.0,0.00011026,2]
[426766576,1782793832000,-499.99999999,0.00011026,2]
[426766575,1782793832000,-500.0,0.00011026,2]
[426766568,1782793832000,-500.0,0.00011026,2]
[426766571,1782793832000,-500.0,0.00011026,2]
[426766563,1782793832000,-500.0,0.00011026,2]
[426766541,1782793832000,-152.0,0.00011001,2]
[426766564,1782793832000,-500.0,0.00011026,2]
[426766567,1782793832000,-500.0,0.00011026,2]
[426766539,1782793832000,-151.0,0.00010974,2]
[426766536,1782793832000,-166.66,0.00010959,2]
[426766533,1782793832000,-1079.97,0.00010895,2]
[426766545,1782793832000,-500.0,0.00011026,2]
[426766543,1782793832000,-168.32,0.00011023,2]
[426766547,1782793832000,-500.0,0.00011026,2]
[426766546,1782793832000,-500.0,0.00011026,2]
[426766548,1782793832000,-500.0,0.00011026,2]
[426766537,1782793832000,-150.0,0.00010969,2]
[426766544,1782793832000,-500.0,0.00011026,2]
[426766549,1782793832000,-500.0,0.00011026,2]
[426766553,1782793832000,-500.0,0.00011026,2]
[426766550,1782793832000,-500.0,0.00011026,2]
[426766552,1782793832000,-500.0,0.00011026,2]
[426766554,1782793832000,-500.0,0.00011026,2]
[426766555,1782793832000,-500.0,0.00011026,2]
[426766551,1782793832000,-500.0,0.00011026,2]
[426766561,1782793832000,-500.0,0.00011026,2]
[426766600,1782793833000,-7514.98,0.00011608,2]
[426766599,1782793833000,-151.0,0.00011608,2]
[426766601,1782793833000,-304.0,0.00011608,2]
[426766602,1782793833000,-336.56187542,0.00011622,2]
[426766603,1782793833000,-255.0,0.0001165,2]
[426766604,1782793833000,-600.0,0.000117,4]
[426766608,1782793833000,-500.0,0.00011714,2]
[426766612,1782793833000,-500.0,0.00011714,2]
[426766606,1782793833000,-269.66669789,0.00011714,2]
[426766609,1782793833000,-354.09608725,0.00011714,2]
[426766610,1782793833000,-316.48831006,0.00011714,2]
[426766611,1782793833000,-500.0,0.00011714,2]
[426766613,1782793833000,-500.0,0.00011714,2]
[426766614,1782793833000,-606.32104911,0.00011714,2]
[426766594,1782793833000,-166.66,0.00011498,2]
[426766605,1782793833000,-216.62538722,0.00011701,2]
[426766593,1782793833000,-250.0,0.00011436,2]
[426766581,1782793833000,-151.0,0.00011027,2]
[426766595,1782793833000,-166.66,0.00011507,2]
[426766579,1782793833000,-222.58523109,0.00011027,2]
[426766584,1782793833000,-153.0,0.00011027,2]
[426766582,1782793833000,-151.0,0.00011027,2]
[426766583,1782793833000,-151.0,0.00011027,2]
[426766585,1782793833000,-151.0,0.00011027,2]
[426766586,1782793833000,-153.0,0.00011027,2]
[426766590,1782793833000,-166.66,0.00011288,2]
[426766598,1782793833000,-151.0,0.00011608,2]
[426766588,1782793833000,-166.66,0.00011068,2]
[426766616,1782793833000,-387.13974017,0.00011714,2]
[426766580,1782793833000,-152.0,0.00011027,2]
[426766587,1782793833000,-304.99,0.00011042,2]
[426766592,1782793833000,-306.45,0.00011414,2]
[426766591,1782793833000,-166.66,0.00011397,2]
[426766596,1782793833000,-250.0,0.00011542,2]
[426766597,1782793833000,-305.36,0.00011579,2]
[426766589,1782793833000,-166.66,0.00011178,2]
[426766617,1782793833000,-500.0,0.00011714,2]
[426766607,1782793833000,-500.0,0.00011714,2]
[426766619,1782793833000,-2398.81148202,0.00011714,2]
[426766641,1782793833000,-702.6873,0.00012203,2]
[426766642,1782793833000,-13875.8355,0.00012203,2]
[426766643,1782793833000,-893.0,0.00012243,2]
[426766647,1782793833000,-1521.15890847,0.00012298,2]
[426766645,1782793833000,-166.66,0.00012257,2]
[426766649,1782793833000,-155.1049337,0.00012303,2]
[426766650,1782793833000,-674.20592727,0.00012303,2]
[426766639,1782793833000,-902.0,0.00012141,2]
[426766651,1782793833000,-245011.3796179,0.00012369,2]
[426766648,1782793833000,-2809.19619422,0.00012298,2]
[426766640,1782793833000,-162.62266977,0.00012203,2]
[426766644,1782793833000,-904.0,0.00012243,2]
[426766646,1782793833000,-2500.0,0.00012284,2]
[426766655,1782793833000,-62413.4655953,0.00012384,2]
[426766654,1782793833000,-33688.29521643,0.00012384,2]
[426766653,1782793833000,-43976.70424042,0.00012384,2]
[426766652,1782793833000,-3790.08065263,0.00012384,2]
[426766635,1782793833000,-150.0,0.00011969,2]
[426766637,1782793833000,-886.0,0.00012025,2]
[426766630,1782793833000,-166.66,0.00011878,2]
[426766618,1782793833000,-150.0,0.00011714,2]
[426766620,1782793833000,-30933.67523344,0.00011716,2]
[426766622,1782793833000,-1200.0,0.000118,4]
[426766621,1782793833000,-90703.0099,0.00011716,2]
[426766626,1782793833000,-153.0,0.00011816,2]
[426766624,1782793833000,-151.0,0.00011815,2]
[426766623,1782793833000,-306.45,0.00011801,2]
[426766625,1782793833000,-150.0,0.00011815,2]
[426766638,1782793833000,-888.19211417,0.00012122,2]
[426766628,1782793833000,-150.0,0.0001182,2]
[426766627,1782793833000,-199.945509,0.00011816,2]
[426766634,1782793833000,-298.14731193,0.00011969,2]
[426766636,1782793833000,-160.0,0.00012003,2]
[426766629,1782793833000,-152.0,0.00011835,2]
[426766631,1782793833000,-151.0,0.00011895,2]
[426766632,1782793833000,-1900.0,0.000119,4]
[426766633,1782793833000,-1848.57,0.00011904,2]
[426766615,1782793833000,-500.0,0.00011714,2]
[426766662,1782793841000,-151.42,0.00011421,2]
[426766661,1782793841000,-151.42,0.00010152,2]
[426766663,1782793841000,-267.58968281,0.00012384,2]
[426766664,1782793842000,-152.0,0.00010469,2]
[426766665,1782793842000,-5669.35679425,0.00012384,2]
[426766678,1782793843000,-627.91947126,0.00012384,2]
[426766676,1782793843000,-270542.14296713,0.00012384,2]
[426766677,1782793843000,-1972.69213965,0.00012384,2]
[426766684,1782793844000,-1079.88131655,0.00012384,2]
[426766683,1782793844000,-275.14764415,0.00012384,2]
[426766682,1782793844000,-4585.50552075,0.00012384,2]
[426766680,1782793844000,-964.48267047,0.00012384,2]
[426766679,1782793844000,-4079.17407781,0.00012384,2]
[426766681,1782793844000,-1459.00659886,0.00012384,2]
[426766685,1782793845000,-21.25649835,0.00012384,2]
[426766689,1782793846000,-309.70670994,0.00012384,2]
[426766699,1782794046000,-150.0,0.00010912,2]
[426766700,1782794099000,-150.0,0.00010912,2]
[426766701,1782794153000,-150.0,0.00010912,2]
[426766702,1782794206000,-150.0,0.00010912,2]
[426766703,1782794259000,-151.0,0.00010912,2]
[426766705,1782794313000,-539.98,0.00010701,2]
[426766706,1782794366000,-151.0,0.00010701,2]
[426766707,1782794412000,-175.51,0.00010642,2]
[426766708,1782794464000,-291.663172,0.00010602,2]
[426766709,1782794518000,-151.0,0.00010602,2]
[426766711,1782794793000,470.84,9.647e-05,2]
[426766710,1782794793000,470.84,9.622e-05,2]
[426766713,1782794793000,470.84,9.697e-05,2]
[426766714,1782794793000,470.84,9.721e-05,2]
[426766712,1782794793000,470.84,9.672e-05,2]
[426766715,1782794794000,470.84,9.746e-05,2]
[426766716,1782794799000,470.84,9.771e-05,2]
[426766718,1782794800000,470.84,9.82e-05,2]
[426766717,1782794800000,470.84,9.795e-05,2]
[426766719,1782794801000,470.84,9.845e-05,2]
[426766720,1782794802000,470.84,9.869e-05,2]
[426766721,1782794803000,470.84,9.894e-05,2]
[426766722,1782794804000,470.84,9.919e-05,2]
[426766723,1782794804000,470.84,9.944e-05,2]
[426766724,1782794805000,470.84,9.968e-05,2]
[426766725,1782794806000,470.84,9.993e-05,2]
[426766726,1782794825000,-470.84,0.00010018,2]
[426766727,1782794825000,-470.84,0.00010042,2]
[426766729,1782794825000,-470.84,0.00010092,2]
[426766731,1782794825000,-151.42,0.00010129,2]
[426766730,1782794825000,-470.84,0.00010117,2]
[426766732,1782794825000,-470.84,0.00010141,2]
[426766733,1782794825000,-470.84,0.00010166,2]
[426766728,1782794825000,-470.84,0.00010067,2]
[426766734,1782794825000,-470.84,0.00010191,2]
[426766737,1782794825000,-470.84,0.00010265,2]
[426766736,1782794825000,-470.84,0.0001024,2]
[426766738,1782794825000,-470.84,0.00010289,2]
[426766741,1782794825000,-378.85742391,0.00010364,2]
[426766739,1782794825000,-470.84,0.00010314,2]
[426766740,1782794825000,-470.84,0.00010339,2]
[426766735,1782794825000,-470.84,0.00010215,2]
[426766742,1782794844000,167.91,9.735e-05,2]
[426766743,1782794862000,602.88,9.735e-05,2]
[426766744,1782794875000,-1000.0,0.00010018,2]
[426766745,1782794928000,-150.0,0.00010017,2]
[426766753,1782794942000,-1000.0,0.00010018,2]
[426766746,1782794942000,-250.0,0.00010018,2]
[426766748,1782794942000,-1000.0,0.00010018,2]
[426766749,1782794942000,-1000.0,0.00010018,2]
[426766750,1782794942000,-503.68473991,0.00010018,2]
[426766752,1782794942000,-1000.0,0.00010018,2]
[426766751,1782794942000,-496.31526009,0.00010018,2]
[426766755,1782794942000,-699.06319983,0.00010018,2]
[426766747,1782794942000,-1000.0,0.00010018,2]
[426766756,1782794942000,-1000.0,0.00010018,2]
[426766757,1782794942000,-250.0,0.0001024,2]
[426766758,1782794942000,-91.98257609,0.00010364,2]
[426766759,1782794942000,-470.84,0.00010388,2]
[426766760,1782794942000,-500.0,0.00010412,2]
[426766761,1782794942000,-178.29994229,0.00010412,2]
[426766762,1782794942000,-500.0,0.00010412,2]
[426766763,1782794942000,-63.4990217,0.00010412,2]
[426766754,1782794942000,-300.93680017,0.00010018,2]
[426766764,1782794943000,561.15,9.611e-05,2]
[426766769,1782794944000,561.15,9.767e-05,2]
[426766768,1782794944000,561.15,9.736e-05,2]
[426766767,1782794944000,561.15,9.704e-05,2]
[426766766,1782794944000,561.15,9.673e-05,2]
[426766765,1782794944000,561.15,9.642e-05,2]
[426766770,1782794945000,561.15,9.798e-05,2]
[426766771,1782794946000,561.15,9.83e-05,2]
[426766772,1782794947000,561.15,9.861e-05,2]
[426766774,1782794948000,561.15,9.924e-05,2]
[426766773,1782794948000,561.15,9.892e-05,2]
[426766775,1782794949000,561.15,9.955e-05,2]
[426766776,1782794950000,561.15,9.986e-05,2]
[426766777,1782794968000,-561.15,0.00010018,2]
[426766784,1782794968000,-31.72717071,0.00010237,2]
[426766778,1782794968000,-561.15,0.00010049,2]
[426766779,1782794968000,-561.15,0.0001008,2]
[426766781,1782794968000,-561.15,0.00010143,2]
[426766780,1782794968000,-561.15,0.00010111,2]
[426766782,1782794968000,-561.15,0.00010174,2]
[426766783,1782794968000,-561.15,0.00010205,2]
[426766793,1782794968000,-96.23565858,0.00010413,2]
[426766786,1782794968000,-561.15,0.00010268,2]
[426766787,1782794968000,-561.15,0.00010299,2]
[426766788,1782794968000,-561.15,0.00010331,2]
[426766790,1782794968000,-561.15,0.00010393,2]
[426766789,1782794968000,-561.15,0.00010362,2]
[426766791,1782794968000,-250.0,0.00010412,2]
[426766792,1782794968000,-374.60434142,0.00010413,2]
[426766794,1782794968000,-561.15,0.00010424,2]
[426766785,1782794968000,-529.42282929,0.00010237,2]
[426766797,1782794969000,-2.57547256,0.00010462,2]
[426766796,1782794969000,-561.15,0.00010456,2]
[426766795,1782794969000,-470.84,0.00010438,2]
[426766798,1782794981000,-468.26452744,0.00010462,2]
[426766799,1782794982000,300.89,9.65e-05,2]
[426766800,1782794982000,300.89,9.717e-05,2]
[426766801,1782794982000,300.89,9.784e-05,2]
[426766802,1782794982000,300.89,9.851e-05,2]
[426766804,1782794982000,300.89,9.984e-05,2]
[426766803,1782794982000,300.89,9.917e-05,2]
[426766812,1782794992000,-470.84,0.00010487,2]
[426766813,1782794992000,-549.50975899,0.00010487,2]
[426766811,1782794992000,-300.89,0.00010452,2]
[426766809,1782794992000,-300.89,0.00010318,2]
[426766810,1782794992000,-300.89,0.00010385,2]
[426766808,1782794992000,-300.89,0.00010251,2]
[426766805,1782794992000,-300.89,0.00010051,2]
[426766806,1782794992000,-300.89,0.00010118,2]
[426766807,1782794992000,-300.89,0.00010184,2]
[426766814,1782794993000,304.33,9.612e-05,2]
[426766815,1782794994000,304.33,9.679e-05,2]
[426766818,1782794994000,304.33,9.882e-05,2]
[426766817,1782794994000,304.33,9.814e-05,2]
[426766816,1782794994000,304.33,9.747e-05,2]
[426766819,1782794995000,304.33,9.949e-05,2]
[426766820,1782794996000,201.45679254,9.758e-05,2]
[426766821,1782794998000,536.18,9.843e-05,2]
[426766864,1782795034000,-304.33,0.00010016,2]
[426766875,1782795035000,-304.33,0.00010489,2]
[426766866,1782795035000,-227.14233921,0.00010075,2]
[426766868,1782795035000,-304.33,0.00010151,2]
[426766865,1782795035000,-166.55145681,0.00010046,2]
[426766867,1782795035000,-304.33,0.00010084,2]
[426766869,1782795035000,-304.33,0.00010219,2]
[426766870,1782795035000,-304.33,0.00010286,2]
[426766872,1782795035000,-304.33,0.00010421,2]
[426766871,1782795035000,-304.33,0.00010354,2]
[426766874,1782795035000,-9999.99,0.00010487,2]
[426766876,1782795035000,-470.84,0.00010512,2]
[426766879,1782795035000,-561.15,0.00010518,2]
[426766873,1782795035000,-11.64024101,0.00010487,2]
[426766878,1782795035000,-9999.99,0.00010518,2]
[426766877,1782795035000,-300.89,0.00010518,2]
[426766887,1782795035000,-3170.16,0.00010586,2]
[426766890,1782795035000,-470.84,0.00010611,2]
[426766891,1782795035000,-304.33,0.00010624,2]
[426766888,1782795035000,-152.0,0.00010602,2]
[426766884,1782795035000,-470.84,0.00010586,2]
[426766889,1782795035000,-151.0,0.00010602,2]
[426766882,1782795035000,-9275.02039773,0.00010558,2]
[426766885,1782795035000,-198.64,0.00010586,2]
[426766883,1782795035000,-470.84,0.00010561,2]
[426766881,1782795035000,-304.33,0.00010556,2]
[426766880,1782795035000,-470.84,0.00010536,2]
[426766886,1782795035000,-150.99,0.00010586,2]
[426766908,1782795036000,-151.0,0.00010912,2]
[426766911,1782795036000,-150.0,0.00010912,2]
[426766912,1782795036000,-151.0,0.00010912,2]
[426766909,1782795036000,-150.0,0.00010912,2]
[426766910,1782795036000,-150.0,0.00010912,2]
[426766914,1782795036000,-151.0,0.00010912,2]
[426766915,1782795036000,-150.0,0.00010912,2]
[426766917,1782795036000,-150.0,0.00010912,2]
[426766918,1782795036000,-153.0,0.00010912,2]
[426766916,1782795036000,-151.0,0.00010912,2]
[426766907,1782795036000,-8168.72713676,0.00010875,2]
[426766920,1782795036000,-152.0,0.00010912,2]
[426766913,1782795036000,-152.0,0.00010912,2]
[426766906,1782795036000,-9718.93007443,0.00010875,2]
[426766899,1782795036000,-150.0,0.00010701,2]
[426766903,1782795036000,-500.0,0.00010873,2]
[426766904,1782795036000,-348214.92010657,0.00010875,2]
[426766901,1782795036000,-2500.0,0.00010775,2]
[426766902,1782795036000,-177.08377207,0.00010821,2]
[426766900,1782795036000,-151.0,0.00010701,2]
[426766897,1782795036000,-151.0,0.00010701,2]
[426766898,1782795036000,-151.0,0.00010701,2]
[426766893,1782795036000,-150.0,0.00010655,2]
[426766896,1782795036000,-151.0,0.00010701,2]
[426766895,1782795036000,-151.0,0.00010667,2]
[426766894,1782795036000,-151.0,0.00010658,2]
[426766892,1782795036000,-470.84,0.00010635,2]
[426766921,1782795036000,-151.0,0.00010912,2]
[426766905,1782795036000,-74013.99938224,0.00010875,2]
[426766924,1782795036000,-150.0,0.00010912,2]
[426766927,1782795036000,-205.75,0.00010922,2]
[426766919,1782795036000,-151.0,0.00010912,2]
[426766923,1782795036000,-151.0,0.00010912,2]
[426766951,1782795036000,-27635.10925066,0.00011516,2]
[426766952,1782795036000,-2088.88125,0.00011516,2]
[426766950,1782795036000,-166.66,0.00011507,2]
[426766948,1782795036000,-250.0,0.00011453,2]
[426766949,1782795036000,-163.56,0.00011487,2]
[426766946,1782795036000,-166.66,0.00011397,2]
[426766947,1782795036000,-310.85,0.00011435,2]
[426766945,1782795036000,-162.5,0.00011375,2]
[426766943,1782795036000,-229.72,0.00011321,2]
[426766942,1782795036000,-166.66,0.00011288,2]
[426766941,1782795036000,-310.85,0.00011226,2]
[426766940,1782795036000,-166.66,0.00011178,2]
[426766938,1782795036000,-310.85,0.00011121,2]
[426766944,1782795036000,-310.85,0.0001133,2]
[426766936,1782795036000,-166.66,0.00011068,2]
[426766939,1782795036000,-493.76656725,0.00011147,2]
[426766926,1782795036000,-171.89,0.00010922,2]
[426766925,1782795036000,-310.85,0.00010912,2]
[426766928,1782795036000,-167.91,0.00010952,2]
[426766930,1782795036000,-150.0,0.00010959,2]
[426766929,1782795036000,-166.66,0.00010959,2]
[426766953,1782795036000,-362.7585741,0.00011516,2]